[Event "Titled Tuesday Blitz April 18 Late 2023"]
[White "Duda, Jan-Krzysztof"]
[Black "Eljanov, Pavel"]
[WhiteFideId "1170546"]
[BlackFideId "14102951"]
[WhiteElo "2790"]
[BlackElo "2598"]
[Result "1-0"]
[Round "09"]
[TimeControl "180+2"]
[Date "2023.04.18"]
[WhiteClock "0:00:06"]
[BlackClock "0:00:03"]

1. Nf3 {[%clk 0:03:00]}  d5 {[%clk 0:02:59]} 2. c4 {[%clk 0:02:58]}  c6 {[%clk 0:02:58]} 3. g3 {[%clk 0:02:57]}  Nf6 {[%clk 0:02:57]} 4. Bg2 {[%clk 0:02:57]}  g6 {[%clk 0:02:54]} 5. O-O {[%clk 0:02:55]}  Bg7 {[%clk 0:02:54]} 6. d4 {[%clk 0:02:55]}  O-O {[%clk 0:02:54]} 7. Nbd2 {[%clk 0:02:55]}  Bf5 {[%clk 0:02:51]} 8. b3 {[%clk 0:02:54]}  a5 {[%clk 0:02:52]} 9. Bb2 {[%clk 0:02:47]}  Ne4 {[%clk 0:02:46]} 10. e3 {[%clk 0:02:35]}  Nd7 {[%clk 0:02:41]} 11. Nxe4 {[%clk 0:02:14]}  Bxe4 {[%clk 0:02:41]} 12. Qe2 {[%clk 0:02:15]}  e6 {[%clk 0:02:37]} 13. Bh3 {[%clk 0:02:12]}  Bxf3 {[%clk 0:02:35]} 14. Qxf3 {[%clk 0:02:13]}  a4 {[%clk 0:02:35]} 15. Rfc1 {[%clk 0:02:09]}  Qb6 {[%clk 0:02:24]} 16. Qd1 {[%clk 0:02:04]}  axb3 {[%clk 0:02:02]} 17. Qxb3 {[%clk 0:01:43]}  Qxb3 {[%clk 0:01:57]} 18. axb3 {[%clk 0:01:44]}  Nc5 {[%clk 0:01:55]} 19. cxd5 {[%clk 0:00:50]}  Nd3 {[%clk 0:01:14]} 20. dxe6 {[%clk 0:00:49]}  Rxa1 {[%clk 0:00:38]} 21. Rxa1 {[%clk 0:00:50]}  Nxb2 {[%clk 0:00:37]} 22. exf7+ {[%clk 0:00:19]}  Kxf7 {[%clk 0:00:37]} 23. Bf1 {[%clk 0:00:20]}  c5 {[%clk 0:00:38]} 24. dxc5 {[%clk 0:00:20]}  Rc8 {[%clk 0:00:32]} 25. b4 {[%clk 0:00:18]}  Rc7 {[%clk 0:00:30]} 26. Ra7 {[%clk 0:00:11]}  Ke6 {[%clk 0:00:27]} 27. Be2 {[%clk 0:00:05]}  h5 {[%clk 0:00:25]} 28. h4 {[%clk 0:00:05]}  Bc3 {[%clk 0:00:25]} 29. Ra3 {[%clk 0:00:04]}  Bf6 {[%clk 0:00:22]} 30. Kg2 {[%clk 0:00:04]}  Rd7 {[%clk 0:00:22]} 31. Ra7 {[%clk 0:00:02]}  Rd2 {[%clk 0:00:21]} 32. Kf1 {[%clk 0:00:01]}  Rd7 {[%clk 0:00:19]} 33. b5 {[%clk 0:00:02]}  Be7 {[%clk 0:00:14]} 34. c6 {[%clk 0:00:02]}  bxc6 {[%clk 0:00:14]} 35. Ra6 {[%clk 0:00:03]}  Rc7 {[%clk 0:00:13]} 36. bxc6 {[%clk 0:00:03]}  Kd5 {[%clk 0:00:09]} 37. Kg2 {[%clk 0:00:03]}  Nc4 {[%clk 0:00:09]} 38. Bf3+ {[%clk 0:00:03]}  Kc5 {[%clk 0:00:09]} 39. Be4 {[%clk 0:00:03]}  Ne5 {[%clk 0:00:09]} 40. Ra5+ {[%clk 0:00:03]}  Kd6 {[%clk 0:00:08]} 41. Rd5+ {[%clk 0:00:04]}  Ke6 {[%clk 0:00:09]} 42. Rb5 {[%clk 0:00:05]}  Kf6 {[%clk 0:00:04]} 43. f4 {[%clk 0:00:05]}  Nc4 {[%clk 0:00:04]} 44. Kf3 {[%clk 0:00:05]}  Nd6 {[%clk 0:00:04]} 45. Rb6 {[%clk 0:00:05]}  Bd8 {[%clk 0:00:04]} 46. Ra6 {[%clk 0:00:05]}  Be7 {[%clk 0:00:03]} 47. Bd5 {[%clk 0:00:05]}  Nb5 {[%clk 0:00:01]} 48. e4 {[%clk 0:00:05]}  Nc3 {[%clk 0:00:01]} 49. Ke3 {[%clk 0:00:05]}  Bc5+ {[%clk 0:00:02]} 50. Kd3 {[%clk 0:00:05]}  Nxd5 {[%clk 0:00:02]} 51. exd5 {[%clk 0:00:05]}  Bd6 {[%clk 0:00:03]} 52. Ra8 {[%clk 0:00:05]}  Re7 {[%clk 0:00:02]} 53. Rf8+ {[%clk 0:00:05]}  Kg7 {[%clk 0:00:02]} 54. Rd8 {[%clk 0:00:06]}  Bc7 {[%clk 0:00:02]} 55. Rc8 {[%clk 0:00:06]}  Bd6 {[%clk 0:00:03]} 56. Kc4 {[%clk 0:00:06]}  Re3 {[%clk 0:00:03]} 57. Rd8 {[%clk 0:00:06]}  Bc7 {[%clk 0:00:03]} 58. Rd7+ {[%clk 0:00:06]} 1-0


[Site "https://www.chess.com"]

[Event "Titled Tuesday Blitz April 18 Late 2023"]
[White "Hansen, Eric"]
[Black "Andreikin, Dmitry"]
[WhiteFideId "2606771"]
[BlackFideId "4158814"]
[WhiteElo "2561"]
[BlackElo "2736"]
[Result "0-1"]
[Round "09"]
[TimeControl "180+2"]
[Date "2023.04.18"]
[WhiteClock "0:00:03"]
[BlackClock "0:00:06"]

1. d4 {[%clk 0:02:56]}  d5 {[%clk 0:02:59]} 2. c4 {[%clk 0:02:46]}  e6 {[%clk 0:02:58]} 3. Nc3 {[%clk 0:02:45]}  a6 {[%clk 0:02:59]} 4. cxd5 {[%clk 0:02:45]}  exd5 {[%clk 0:02:59]} 5. Bf4 {[%clk 0:02:46]}  Nf6 {[%clk 0:02:57]} 6. e3 {[%clk 0:02:46]}  Bd6 {[%clk 0:02:57]} 7. Bg3 {[%clk 0:02:38]}  O-O {[%clk 0:02:56]} 8. Bd3 {[%clk 0:02:38]}  Re8 {[%clk 0:02:56]} 9. Qc2 {[%clk 0:02:36]}  Nc6 {[%clk 0:02:54]} 10. Nf3 {[%clk 0:02:18]}  Nb4 {[%clk 0:02:45]} 11. Qd1 {[%clk 0:02:18]}  Nxd3+ {[%clk 0:02:44]} 12. Qxd3 {[%clk 0:02:19]}  c6 {[%clk 0:02:37]} 13. Bxd6 {[%clk 0:02:05]}  Qxd6 {[%clk 0:02:36]} 14. Ne5 {[%clk 0:02:06]}  Ng4 {[%clk 0:02:32]} 15. Nxg4 {[%clk 0:02:01]}  Bxg4 {[%clk 0:02:33]} 16. f3 {[%clk 0:01:54]}  Bh5 {[%clk 0:02:27]} 17. O-O {[%clk 0:01:53]}  Re6 {[%clk 0:02:19]} 18. Rae1 {[%clk 0:01:50]}  Rae8 {[%clk 0:02:19]} 19. Qd2 {[%clk 0:01:49]}  Bg6 {[%clk 0:02:09]} 20. Re2 {[%clk 0:01:46]}  h5 {[%clk 0:02:05]} 21. Rfe1 {[%clk 0:01:43]}  h4 {[%clk 0:02:05]} 22. h3 {[%clk 0:01:30]}  Qg3 {[%clk 0:02:05]} 23. e4 {[%clk 0:01:25]}  dxe4 {[%clk 0:01:57]} 24. fxe4 {[%clk 0:01:24]}  Rd8 {[%clk 0:01:45]} 25. d5 {[%clk 0:01:18]}  Re5 {[%clk 0:01:41]} 26. Re3 {[%clk 0:01:17]}  Qg5 {[%clk 0:01:40]} 27. Qf2 {[%clk 0:01:16]}  f6 {[%clk 0:01:37]} 28. a3 {[%clk 0:01:09]}  Bf7 {[%clk 0:01:35]} 29. Rd3 {[%clk 0:01:06]}  Kh7 {[%clk 0:01:07]} 30. Red1 {[%clk 0:01:03]}  Bh5 {[%clk 0:00:57]} 31. Rf1 {[%clk 0:00:55]}  Bg6 {[%clk 0:00:54]} 32. Rd4 {[%clk 0:00:55]}  c5 {[%clk 0:00:50]} 33. Ra4 {[%clk 0:00:44]}  b5 {[%clk 0:00:39]} 34. Rxa6 {[%clk 0:00:44]}  Bxe4 {[%clk 0:00:39]} 35. Nxe4 {[%clk 0:00:22]}  Rxe4 {[%clk 0:00:40]} 36. Re6 {[%clk 0:00:16]}  Qxd5 {[%clk 0:00:31]} 37. Rxe4 {[%clk 0:00:09]}  Qxe4 {[%clk 0:00:32]} 38. Qxc5 {[%clk 0:00:10]}  Rd2 {[%clk 0:00:31]} 39. Qh5+ {[%clk 0:00:03]}  Kg8 {[%clk 0:00:30]} 40. Qg4 {[%clk 0:00:03]}  Qxg4 {[%clk 0:00:28]} 41. hxg4 {[%clk 0:00:04]}  Rxb2 {[%clk 0:00:29]} 42. Kh2 {[%clk 0:00:03]}  Rb3 {[%clk 0:00:18]} 43. Rf5 {[%clk 0:00:03]}  Kh7 {[%clk 0:00:18]} 44. Rc5 {[%clk 0:00:02]}  Kg6 {[%clk 0:00:17]} 45. Rd5 {[%clk 0:00:02]}  Kh6 {[%clk 0:00:09]} 46. Rh5+ {[%clk 0:00:02]}  Kg6 {[%clk 0:00:09]} 47. Rd5 {[%clk 0:00:03]}  Kf7 {[%clk 0:00:09]} 48. Rd7+ {[%clk 0:00:03]}  Kf8 {[%clk 0:00:09]} 49. Rb7 {[%clk 0:00:03]}  Kg8 {[%clk 0:00:09]} 50. Rb6 {[%clk 0:00:02]}  Kh7 {[%clk 0:00:09]} 51. Rb7 {[%clk 0:00:02]}  Kg6 {[%clk 0:00:08]} 52. Rb6 {[%clk 0:00:01]}  Kg5 {[%clk 0:00:09]} 53. Rb7 {[%clk 0:00:01]}  g6 {[%clk 0:00:08]} 54. Rb6 {[%clk 0:00:02]}  Rxa3 {[%clk 0:00:03]} 55. Rxb5+ {[%clk 0:00:02]}  Kxg4 {[%clk 0:00:04]} 56. Rb4+ {[%clk 0:00:03]}  Kg5 {[%clk 0:00:04]} 57. Rb5+ {[%clk 0:00:03]}  f5 {[%clk 0:00:05]} 58. Rb4 {[%clk 0:00:03]}  Re3 {[%clk 0:00:04]} 59. Rb6 {[%clk 0:00:03]}  Re4 {[%clk 0:00:05]} 60. Rb8 {[%clk 0:00:03]}  Kg4 {[%clk 0:00:04]} 61. Rg8 {[%clk 0:00:03]}  g5 {[%clk 0:00:04]} 62. Rc8 {[%clk 0:00:03]}  Re2 {[%clk 0:00:04]} 63. Rc4+ {[%clk 0:00:03]}  f4 {[%clk 0:00:04]} 64. Rc3 {[%clk 0:00:03]}  Re3 {[%clk 0:00:03]} 65. Rc5 {[%clk 0:00:03]}  h3 {[%clk 0:00:03]} 66. gxh3+ {[%clk 0:00:01]}  Rxh3+ {[%clk 0:00:04]} 67. Kg2 {[%clk 0:00:02]}  Ra3 {[%clk 0:00:05]} 68. Kf2 {[%clk 0:00:03]}  Ra2+ {[%clk 0:00:05]} 69. Kf1 {[%clk 0:00:03]}  f3 {[%clk 0:00:06]} 70. Rd5 {[%clk 0:00:03]}  Kf4 {[%clk 0:00:06]} 71. Rb5 {[%clk 0:00:03]}  g4 {[%clk 0:00:06]} 0-1


[Site "https://www.chess.com"]

[Event "Titled Tuesday Blitz April 18 Late 2023"]
[White "Pranav, V"]
[Black "Bartel, Mateusz"]
[WhiteFideId "25060783"]
[BlackFideId "1112635"]
[WhiteElo "2500"]
[BlackElo "2521"]
[Result "0-1"]
[Round "09"]
[TimeControl "180+2"]
[Date "2023.04.18"]
[WhiteClock "0:00:03"]
[BlackClock "0:00:12"]

1. e4 {[%clk 0:03:00]}  e6 {[%clk 0:02:57]} 2. d4 {[%clk 0:02:59]}  d5 {[%clk 0:02:57]} 3. Nc3 {[%clk 0:03:00]}  Bb4 {[%clk 0:02:54]} 4. e5 {[%clk 0:03:00]}  Qd7 {[%clk 0:02:50]} 5. Qg4 {[%clk 0:02:59]}  f5 {[%clk 0:02:42]} 6. Qg3 {[%clk 0:02:56]}  c5 {[%clk 0:02:40]} 7. Nf3 {[%clk 0:02:48]}  Nc6 {[%clk 0:02:36]} 8. a3 {[%clk 0:02:43]}  Bxc3+ {[%clk 0:02:22]} 9. bxc3 {[%clk 0:02:44]}  c4 {[%clk 0:02:12]} 10. h4 {[%clk 0:02:43]}  h6 {[%clk 0:02:07]} 11. h5 {[%clk 0:02:42]}  Qf7 {[%clk 0:02:07]} 12. Be2 {[%clk 0:02:41]}  Nge7 {[%clk 0:02:07]} 13. Nh4 {[%clk 0:02:41]}  Bd7 {[%clk 0:02:05]} 14. a4 {[%clk 0:02:40]}  O-O-O {[%clk 0:02:05]} 15. Ba3 {[%clk 0:02:39]}  b6 {[%clk 0:02:04]} 16. Bd6 {[%clk 0:02:35]}  Rhg8 {[%clk 0:02:02]} 17. Ng6 {[%clk 0:02:33]}  Nxg6 {[%clk 0:02:00]} 18. hxg6 {[%clk 0:02:34]}  Qe8 {[%clk 0:02:00]} 19. O-O {[%clk 0:02:32]}  Na5 {[%clk 0:01:59]} 20. Bb4 {[%clk 0:02:18]}  Kb7 {[%clk 0:01:54]} 21. Rfb1 {[%clk 0:02:12]}  Ka8 {[%clk 0:01:40]} 22. Qf3 {[%clk 0:02:06]}  Bc6 {[%clk 0:01:38]} 23. Rb2 {[%clk 0:02:03]}  Rc8 {[%clk 0:01:24]} 24. Qg3 {[%clk 0:01:57]}  Nb7 {[%clk 0:01:09]} 25. a5 {[%clk 0:01:57]}  Nxa5 {[%clk 0:01:08]} 26. Bxa5 {[%clk 0:01:57]}  bxa5 {[%clk 0:01:09]} 27. Rxa5 {[%clk 0:01:58]}  Rb8 {[%clk 0:01:09]} 28. Rba2 {[%clk 0:01:58]}  Rb7 {[%clk 0:01:07]} 29. Ra6 {[%clk 0:01:55]}  Qd7 {[%clk 0:01:06]} 30. Qf3 {[%clk 0:01:51]}  Rc8 {[%clk 0:01:05]} 31. g3 {[%clk 0:01:50]}  Rcc7 {[%clk 0:01:04]} 32. Kg2 {[%clk 0:01:50]}  Qc8 {[%clk 0:01:03]} 33. Qe3 {[%clk 0:01:48]}  Qe8 {[%clk 0:01:00]} 34. Bh5 {[%clk 0:01:44]}  Rb1 {[%clk 0:00:57]} 35. Qf4 {[%clk 0:01:29]}  Qb8 {[%clk 0:00:47]} 36. Bf3 {[%clk 0:01:24]}  Re1 {[%clk 0:00:42]} 37. Qd2 {[%clk 0:01:18]}  Rb1 {[%clk 0:00:40]} 38. R6a5 {[%clk 0:01:17]}  Qe8 {[%clk 0:00:28]} 39. Ra1 {[%clk 0:01:14]}  Rxa1 {[%clk 0:00:28]} 40. Rxa1 {[%clk 0:01:15]}  Qxg6 {[%clk 0:00:28]} 41. Qc1 {[%clk 0:01:15]}  Qe8 {[%clk 0:00:28]} 42. Qa3 {[%clk 0:01:16]}  Rb7 {[%clk 0:00:27]} 43. Qd6 {[%clk 0:01:15]}  Bb5 {[%clk 0:00:24]} 44. Ra5 {[%clk 0:01:12]}  a6 {[%clk 0:00:22]} 45. Ra1 {[%clk 0:01:04]}  Qd7 {[%clk 0:00:22]} 46. Qf8+ {[%clk 0:01:01]}  Rb8 {[%clk 0:00:23]} 47. Qc5 {[%clk 0:01:01]}  Qa7 {[%clk 0:00:23]} 48. Qd6 {[%clk 0:01:00]}  Qb6 {[%clk 0:00:23]} 49. Qe7 {[%clk 0:00:58]}  Rb7 {[%clk 0:00:23]} 50. Qf8+ {[%clk 0:00:58]}  Ka7 {[%clk 0:00:24]} 51. Bh5 {[%clk 0:00:56]}  Rc7 {[%clk 0:00:21]} 52. Bf7 {[%clk 0:00:46]}  Qc6 {[%clk 0:00:21]} 53. Bg6 {[%clk 0:00:43]}  Qd7 {[%clk 0:00:20]} 54. Qb4 {[%clk 0:00:40]}  Qc6 {[%clk 0:00:18]} 55. Qa5 {[%clk 0:00:35]}  Qb6 {[%clk 0:00:18]} 56. Qa3 {[%clk 0:00:36]}  Rb7 {[%clk 0:00:17]} 57. Qf8 {[%clk 0:00:35]}  Qc6 {[%clk 0:00:17]} 58. Qg8 {[%clk 0:00:34]}  Qd7 {[%clk 0:00:17]} 59. Qf8 {[%clk 0:00:32]}  Qe7 {[%clk 0:00:17]} 60. Qg8 {[%clk 0:00:26]}  Rb8 {[%clk 0:00:17]} 61. Qh7 {[%clk 0:00:25]}  Rf8 {[%clk 0:00:17]} 62. Bh5 {[%clk 0:00:24]}  Kb6 {[%clk 0:00:17]} 63. Be2 {[%clk 0:00:20]}  Qf7 {[%clk 0:00:16]} 64. Bh5 {[%clk 0:00:18]}  Qxh5 {[%clk 0:00:15]} 65. Qxg7 {[%clk 0:00:18]}  Qf7 {[%clk 0:00:16]} 66. Qxh6 {[%clk 0:00:19]}  f4 {[%clk 0:00:16]} 67. g4 {[%clk 0:00:19]}  f3+ {[%clk 0:00:15]} 68. Kg3 {[%clk 0:00:19]}  Bd7 {[%clk 0:00:15]} 69. Rb1+ {[%clk 0:00:18]}  Kc7 {[%clk 0:00:15]} 70. Rh1 {[%clk 0:00:18]}  a5 {[%clk 0:00:15]} 71. Qc1 {[%clk 0:00:17]}  a4 {[%clk 0:00:14]} 72. Rh6 {[%clk 0:00:18]}  Qg7 {[%clk 0:00:14]} 73. Rh5 {[%clk 0:00:14]}  Qe7 {[%clk 0:00:14]} 74. Rh1 {[%clk 0:00:10]}  a3 {[%clk 0:00:14]} 75. Qe3 {[%clk 0:00:10]}  Ra8 {[%clk 0:00:14]} 76. Ra1 {[%clk 0:00:11]}  a2 {[%clk 0:00:14]} 77. Qc1 {[%clk 0:00:11]}  Qa3 {[%clk 0:00:14]} 78. Qxa3 {[%clk 0:00:08]}  Rxa3 {[%clk 0:00:15]} 79. g5 {[%clk 0:00:09]}  Kd8 {[%clk 0:00:15]} 80. g6 {[%clk 0:00:07]}  Ke7 {[%clk 0:00:15]} 81. Kf4 {[%clk 0:00:08]}  Be8 {[%clk 0:00:14]} 82. Kg5 {[%clk 0:00:07]}  Ra7 {[%clk 0:00:10]} 83. Kh6 {[%clk 0:00:06]}  Kf8 {[%clk 0:00:11]} 84. Kg5 {[%clk 0:00:04]}  Kg7 {[%clk 0:00:11]} 85. Kf4 {[%clk 0:00:03]}  Bxg6 {[%clk 0:00:12]} 0-1


[Site "https://www.chess.com"]

[Event "Titled Tuesday Blitz April 18 Late 2023"]
[White "Kramnik, Vladimir"]
[Black "Indjic, Aleksandar"]
[WhiteFideId "4101588"]
[BlackFideId "911925"]
[WhiteElo "2712"]
[BlackElo "2614"]
[Result "1-0"]
[Round "09"]
[TimeControl "180+2"]
[Date "2023.04.18"]
[WhiteClock "0:00:04"]
[BlackClock "0:00:05"]

1. e4 {[%clk 0:03:00]}  c5 {[%clk 0:02:55]} 2. Nf3 {[%clk 0:03:00]}  e6 {[%clk 0:02:55]} 3. d4 {[%clk 0:02:59]}  cxd4 {[%clk 0:02:55]} 4. Nxd4 {[%clk 0:02:59]}  a6 {[%clk 0:02:49]} 5. c4 {[%clk 0:02:55]}  Nf6 {[%clk 0:02:48]} 6. Nc3 {[%clk 0:02:54]}  Qc7 {[%clk 0:02:48]} 7. Be2 {[%clk 0:02:53]}  b6 {[%clk 0:02:47]} 8. Be3 {[%clk 0:02:47]}  Bb7 {[%clk 0:02:46]} 9. f3 {[%clk 0:02:47]}  Nc6 {[%clk 0:02:41]} 10. Qd2 {[%clk 0:02:43]}  d6 {[%clk 0:02:15]} 11. Rc1 {[%clk 0:02:39]}  Nxd4 {[%clk 0:02:14]} 12. Qxd4 {[%clk 0:02:36]}  Nd7 {[%clk 0:01:56]} 13. O-O {[%clk 0:02:34]}  Rb8 {[%clk 0:01:54]} 14. b4 {[%clk 0:02:33]}  Ba8 {[%clk 0:01:39]} 15. Rfd1 {[%clk 0:02:32]}  Nf6 {[%clk 0:01:21]} 16. Na4 {[%clk 0:02:26]}  e5 {[%clk 0:01:15]} 17. Qd2 {[%clk 0:02:06]}  Be7 {[%clk 0:01:14]} 18. Nc3 {[%clk 0:01:59]}  Bb7 {[%clk 0:00:54]} 19. Nd5 {[%clk 0:01:49]}  Nxd5 {[%clk 0:00:54]} 20. cxd5 {[%clk 0:01:49]}  Qd8 {[%clk 0:00:55]} 21. b5 {[%clk 0:01:48]}  axb5 {[%clk 0:00:45]} 22. Bxb5+ {[%clk 0:01:47]}  Kf8 {[%clk 0:00:46]} 23. Qf2 {[%clk 0:01:44]}  Ba8 {[%clk 0:00:41]} 24. Bc6 {[%clk 0:01:41]}  Bg5 {[%clk 0:00:39]} 25. Bxg5 {[%clk 0:01:25]}  Qxg5 {[%clk 0:00:39]} 26. Rb1 {[%clk 0:01:24]}  Qd8 {[%clk 0:00:37]} 27. Rdc1 {[%clk 0:01:18]}  h5 {[%clk 0:00:36]} 28. Bxa8 {[%clk 0:01:03]}  Rxa8 {[%clk 0:00:35]} 29. Rc6 {[%clk 0:01:03]}  b5 {[%clk 0:00:31]} 30. Rxb5 {[%clk 0:01:02]}  Rb8 {[%clk 0:00:25]} 31. Rxb8 {[%clk 0:00:59]}  Qxb8 {[%clk 0:00:26]} 32. Qb6 {[%clk 0:00:57]}  Qxb6+ {[%clk 0:00:25]} 33. Rxb6 {[%clk 0:00:57]}  Ke7 {[%clk 0:00:26]} 34. Rb7+ {[%clk 0:00:56]}  Kf6 {[%clk 0:00:26]} 35. a4 {[%clk 0:00:47]}  Ra8 {[%clk 0:00:26]} 36. Rb4 {[%clk 0:00:47]}  h4 {[%clk 0:00:26]} 37. Kf2 {[%clk 0:00:47]}  Kg5 {[%clk 0:00:26]} 38. g3 {[%clk 0:00:46]}  h3 {[%clk 0:00:24]} 39. Ke3 {[%clk 0:00:44]}  g6 {[%clk 0:00:23]} 40. f4+ {[%clk 0:00:37]}  Kf6 {[%clk 0:00:22]} 41. Kf3 {[%clk 0:00:36]}  g5 {[%clk 0:00:20]} 42. fxe5+ {[%clk 0:00:31]}  Kxe5 {[%clk 0:00:20]} 43. Kg4 {[%clk 0:00:31]}  f6 {[%clk 0:00:16]} 44. Kxh3 {[%clk 0:00:31]}  f5 {[%clk 0:00:17]} 45. exf5 {[%clk 0:00:31]}  Kxf5 {[%clk 0:00:18]} 46. Kg2 {[%clk 0:00:30]}  Ke5 {[%clk 0:00:18]} 47. Kf3 {[%clk 0:00:28]}  Kxd5 {[%clk 0:00:17]} 48. Kg4 {[%clk 0:00:26]}  Kc5 {[%clk 0:00:17]} 49. Rb2 {[%clk 0:00:24]}  Rg8 {[%clk 0:00:16]} 50. a5 {[%clk 0:00:21]}  d5 {[%clk 0:00:16]} 51. a6 {[%clk 0:00:21]}  Ra8 {[%clk 0:00:16]} 52. Ra2 {[%clk 0:00:20]}  d4 {[%clk 0:00:16]} 53. Kxg5 {[%clk 0:00:20]}  Kb4 {[%clk 0:00:17]} 54. h4 {[%clk 0:00:15]}  Kb3 {[%clk 0:00:17]} 55. Ra1 {[%clk 0:00:14]}  d3 {[%clk 0:00:17]} 56. h5 {[%clk 0:00:13]}  Kb2 {[%clk 0:00:18]} 57. Rh1 {[%clk 0:00:12]}  Rxa6 {[%clk 0:00:14]} 58. h6 {[%clk 0:00:11]}  d2 {[%clk 0:00:12]} 59. h7 {[%clk 0:00:11]}  Ra8 {[%clk 0:00:12]} 60. Kg6 {[%clk 0:00:09]}  Ra6+ {[%clk 0:00:12]} 61. Kg5 {[%clk 0:00:08]}  Ra8 {[%clk 0:00:12]} 62. g4 {[%clk 0:00:08]}  Kc2 {[%clk 0:00:10]} 63. Kg6 {[%clk 0:00:07]}  Ra6+ {[%clk 0:00:10]} 64. Kh5 {[%clk 0:00:07]}  Ra8 {[%clk 0:00:07]} 65. g5 {[%clk 0:00:07]}  Kc3 {[%clk 0:00:07]} 66. g6 {[%clk 0:00:07]}  Re8 {[%clk 0:00:07]} 67. Rd1 {[%clk 0:00:04]}  Re1 {[%clk 0:00:05]} 68. Rxd2 {[%clk 0:00:04]}  Kxd2 {[%clk 0:00:06]} 69. Kh6 {[%clk 0:00:04]}  Rh1+ {[%clk 0:00:05]} 70. Kg7 {[%clk 0:00:04]} 1-0


[Site "https://www.chess.com"]

[Event "Titled Tuesday Blitz April 18 Late 2023"]
[White "Ibrahimli, Murad"]
[Black "Larino Nieto, David"]
[WhiteFideId "13410229"]
[BlackFideId "2256444"]
[WhiteElo "2364"]
[BlackElo "2506"]
[Result "1-0"]
[Round "09"]
[TimeControl "180+2"]
[Date "2023.04.18"]
[WhiteClock "0:00:21"]
[BlackClock "0:00:03"]

1. d4 {[%clk 0:03:00]}  e6 {[%clk 0:03:00]} 2. c4 {[%clk 0:03:00]}  b6 {[%clk 0:03:00]} 3. a3 {[%clk 0:02:59]}  Bb7 {[%clk 0:03:00]} 4. Nc3 {[%clk 0:02:59]}  Ne7 {[%clk 0:03:01]} 5. e4 {[%clk 0:02:57]}  d6 {[%clk 0:03:01]} 6. Bd3 {[%clk 0:02:56]}  Nd7 {[%clk 0:03:02]} 7. Nge2 {[%clk 0:02:56]}  a6 {[%clk 0:02:59]} 8. O-O {[%clk 0:02:56]}  c5 {[%clk 0:02:59]} 9. f4 {[%clk 0:02:56]}  cxd4 {[%clk 0:02:57]} 10. Nxd4 {[%clk 0:02:56]}  Qc7 {[%clk 0:02:56]} 11. Kh1 {[%clk 0:02:54]}  Nc6 {[%clk 0:02:55]} 12. Nf3 {[%clk 0:02:52]}  Be7 {[%clk 0:02:53]} 13. b4 {[%clk 0:02:40]}  Bf6 {[%clk 0:02:47]} 14. Bb2 {[%clk 0:02:41]}  O-O {[%clk 0:02:44]} 15. Rc1 {[%clk 0:02:40]}  Rac8 {[%clk 0:02:41]} 16. Bb1 {[%clk 0:02:30]}  Ne7 {[%clk 0:02:01]} 17. Qd2 {[%clk 0:02:06]}  Rfd8 {[%clk 0:01:57]} 18. Rfd1 {[%clk 0:01:59]}  Qb8 {[%clk 0:01:34]} 19. Qe2 {[%clk 0:01:19]}  g6 {[%clk 0:01:14]} 20. Bd3 {[%clk 0:01:13]}  Bg7 {[%clk 0:01:13]} 21. Qe3 {[%clk 0:01:13]}  Re8 {[%clk 0:01:06]} 22. Bf1 {[%clk 0:01:11]}  d5 {[%clk 0:00:59]} 23. e5 {[%clk 0:01:08]}  Nf5 {[%clk 0:00:56]} 24. Qf2 {[%clk 0:01:08]}  Qa8 {[%clk 0:00:49]} 25. cxd5 {[%clk 0:01:08]}  exd5 {[%clk 0:00:48]} 26. Ne2 {[%clk 0:01:02]}  b5 {[%clk 0:00:40]} 27. Ned4 {[%clk 0:00:58]}  Nxd4 {[%clk 0:00:40]} 28. Bxd4 {[%clk 0:00:50]}  Nf8 {[%clk 0:00:39]} 29. f5 {[%clk 0:00:50]}  gxf5 {[%clk 0:00:38]} 30. Nh4 {[%clk 0:00:51]}  Ng6 {[%clk 0:00:34]} 31. Nxf5 {[%clk 0:00:50]}  Bxe5 {[%clk 0:00:35]} 32. Nh6+ {[%clk 0:00:46]}  Kg7 {[%clk 0:00:21]} 33. Qxf7+ {[%clk 0:00:46]}  Kxh6 {[%clk 0:00:21]} 34. Be3+ {[%clk 0:00:46]}  Bf4 {[%clk 0:00:21]} 35. Bxf4+ {[%clk 0:00:46]}  Nxf4 {[%clk 0:00:21]} 36. Qxf4+ {[%clk 0:00:46]}  Kg7 {[%clk 0:00:22]} 37. Rd3 {[%clk 0:00:38]}  Re6 {[%clk 0:00:16]} 38. Rg3+ {[%clk 0:00:36]}  Rg6 {[%clk 0:00:16]} 39. Rc7+ {[%clk 0:00:36]}  Rxc7 {[%clk 0:00:16]} 40. Qxc7+ {[%clk 0:00:37]}  Kh8 {[%clk 0:00:15]} 41. Qe5+ {[%clk 0:00:36]}  Kg8 {[%clk 0:00:15]} 42. Qe6+ {[%clk 0:00:33]}  Kg7 {[%clk 0:00:16]} 43. Qe7+ {[%clk 0:00:33]}  Kg8 {[%clk 0:00:14]} 44. Rh3 {[%clk 0:00:33]}  Rg7 {[%clk 0:00:14]} 45. Qe6+ {[%clk 0:00:33]}  Kh8 {[%clk 0:00:15]} 46. Qf6 {[%clk 0:00:30]}  d4 {[%clk 0:00:14]} 47. Rg3 {[%clk 0:00:27]}  Qg8 {[%clk 0:00:11]} 48. Qxd4 {[%clk 0:00:25]}  Qf8 {[%clk 0:00:11]} 49. Kg1 {[%clk 0:00:24]}  Kg8 {[%clk 0:00:11]} 50. Rxg7+ {[%clk 0:00:24]}  Qxg7 {[%clk 0:00:12]} 51. Qxg7+ {[%clk 0:00:24]}  Kxg7 {[%clk 0:00:12]} 52. Kf2 {[%clk 0:00:24]}  Kf6 {[%clk 0:00:13]} 53. Bd3 {[%clk 0:00:23]}  h6 {[%clk 0:00:12]} 54. g3 {[%clk 0:00:24]}  Ke5 {[%clk 0:00:13]} 55. Ke3 {[%clk 0:00:24]}  Bd5 {[%clk 0:00:12]} 56. Be2 {[%clk 0:00:23]}  Bb7 {[%clk 0:00:12]} 57. h4 {[%clk 0:00:22]}  Bc8 {[%clk 0:00:11]} 58. Bf3 {[%clk 0:00:22]}  Kd6 {[%clk 0:00:04]} 59. Kd4 {[%clk 0:00:22]}  Bd7 {[%clk 0:00:03]} 60. g4 {[%clk 0:00:22]}  Bc8 {[%clk 0:00:04]} 61. g5 {[%clk 0:00:22]}  hxg5 {[%clk 0:00:04]} 62. hxg5 {[%clk 0:00:23]}  Be6 {[%clk 0:00:05]} 63. Bb7 {[%clk 0:00:23]}  Kc7 {[%clk 0:00:05]} 64. Be4 {[%clk 0:00:21]}  Kd6 {[%clk 0:00:05]} 65. Bb7 {[%clk 0:00:20]}  Kc7 {[%clk 0:00:05]} 66. Bd5 {[%clk 0:00:21]}  Bf5 {[%clk 0:00:05]} 67. Kc5 {[%clk 0:00:21]}  Bg6 {[%clk 0:00:03]} 68. Be6 {[%clk 0:00:22]}  Kb7 {[%clk 0:00:03]} 69. Kd6 {[%clk 0:00:21]}  Kb6 {[%clk 0:00:03]} 70. Ke5 {[%clk 0:00:22]}  a5 {[%clk 0:00:04]} 71. Kf6 {[%clk 0:00:22]}  Bh7 {[%clk 0:00:02]} 72. Bf5 {[%clk 0:00:20]}  Bg8 {[%clk 0:00:02]} 73. g6 {[%clk 0:00:21]}  axb4 {[%clk 0:00:03]} 74. axb4 {[%clk 0:00:21]} 1-0


[Site "https://www.chess.com"]